[Event "January 9 Early 2024"]
[Site "https://www.chess.com"]
[Date "2024.01.11"]
[Round "3"]
[White "Drozdowski, Kacper"]
[Black "Halkias, Stelios"]
[Result "1-0"]
[Board "313"]
[TimeControl "180+1"]
[WhiteFideId "1136720"]
[BlackFideId "4201809"]
[WhiteElo "2977"]
[BlackElo "2726"]
[WhiteTeam "POL"]
[BlackTeam "GRE"]
[WhiteClock "0:00:07"]
[BlackClock "0:00:08"]

1. e4 {[%clk 0:03:00]}  e5 {[%clk 0:02:54]} 2. Nf3 {[%clk 0:03:01]}  Nc6 {[%clk 0:02:53]} 3. Bc4 {[%clk 0:03:01]}  Nf6 {[%clk 0:02:52]} 4. d3 {[%clk 0:03:01]}  Bc5 {[%clk 0:02:50]} 5. c3 {[%clk 0:03:02]}  d6 {[%clk 0:02:49]} 6. Bb3 {[%clk 0:03:02]}  h6 {[%clk 0:02:48]} 7. h3 {[%clk 0:03:03]}  a5 {[%clk 0:02:46]} 8. Nbd2 {[%clk 0:03:03]}  Ba7 {[%clk 0:02:43]} 9. Nf1 {[%clk 0:03:02]}  Be6 {[%clk 0:02:43]} 10. Ng3 {[%clk 0:03:01]}  O-O {[%clk 0:02:42]} 11. Nh2 {[%clk 0:02:56]}  Qd7 {[%clk 0:02:40]} 12. Qf3 {[%clk 0:02:55]}  Bxb3 {[%clk 0:02:32]} 13. axb3 {[%clk 0:02:55]}  Qe6 {[%clk 0:02:32]} 14. Ng4 {[%clk 0:02:53]}  Nxg4 {[%clk 0:02:18]} 15. hxg4 {[%clk 0:02:54]}  f6 {[%clk 0:02:06]} 16. Nf5 {[%clk 0:02:44]}  Ne7 {[%clk 0:01:53]} 17. Nxg7 {[%clk 0:02:29]}  Kxg7 {[%clk 0:01:50]} 18. Bxh6+ {[%clk 0:02:29]}  Kf7 {[%clk 0:01:48]} 19. Bxf8 {[%clk 0:02:27]}  Rxf8 {[%clk 0:01:48]} 20. Rxa5 {[%clk 0:02:24]}  Bb6 {[%clk 0:01:46]} 21. Ra3 {[%clk 0:02:23]}  Ng6 {[%clk 0:01:42]} 22. g3 {[%clk 0:02:15]}  Kg7 {[%clk 0:01:40]} 23. Qf5 {[%clk 0:02:07]}  Qxf5 {[%clk 0:01:37]} 24. gxf5 {[%clk 0:02:07]}  Ne7 {[%clk 0:01:37]} 25. Ke2 {[%clk 0:02:05]}  d5 {[%clk 0:01:36]} 26. b4 {[%clk 0:02:01]}  c6 {[%clk 0:01:30]} 27. Rha1 {[%clk 0:01:55]}  Rh8 {[%clk 0:01:26]} 28. Ra8 {[%clk 0:01:50]}  Nc8 {[%clk 0:01:08]} 29. Rb8 {[%clk 0:01:47]}  Nd6 {[%clk 0:01:06]} 30. Rxh8 {[%clk 0:01:45]}  Kxh8 {[%clk 0:01:06]} 31. f3 {[%clk 0:01:42]}  Kg7 {[%clk 0:01:06]} 32. Ra8 {[%clk 0:01:35]}  Kf7 {[%clk 0:01:06]} 33. g4 {[%clk 0:01:02]}  Kg7 {[%clk 0:01:06]} 34. Ra1 {[%clk 0:00:58]}  Kf7 {[%clk 0:01:06]} 35. Rh1 {[%clk 0:00:58]}  Kg7 {[%clk 0:01:06]} 36. Rh5 {[%clk 0:00:58]}  Nf7 {[%clk 0:01:03]} 37. b5 {[%clk 0:00:52]}  dxe4 {[%clk 0:00:58]} 38. fxe4 {[%clk 0:00:49]}  cxb5 {[%clk 0:00:58]} 39. Rh1 {[%clk 0:00:49]}  Ng5 {[%clk 0:00:50]} 40. Ra1 {[%clk 0:00:47]}  Nh3 {[%clk 0:00:50]} 41. Ra8 {[%clk 0:00:47]}  Nf4+ {[%clk 0:00:50]} 42. Kd2 {[%clk 0:00:47]}  Kh6 {[%clk 0:00:44]} 43. Rb8 {[%clk 0:00:46]}  Kg5 {[%clk 0:00:42]} 44. Rxb7 {[%clk 0:00:47]}  Bf2 {[%clk 0:00:42]} 45. Rg7+ {[%clk 0:00:42]}  Kh4 {[%clk 0:00:42]} 46. Rg8 {[%clk 0:00:38]}  Bg1 {[%clk 0:00:33]} 47. b4 {[%clk 0:00:37]}  Bf2 {[%clk 0:00:28]} 48. Rb8 {[%clk 0:00:32]}  Kxg4 {[%clk 0:00:25]} 49. Rxb5 {[%clk 0:00:33]}  Kf3 {[%clk 0:00:26]} 50. Rb8 {[%clk 0:00:30]}  Be3+ {[%clk 0:00:26]} 51. Kc2 {[%clk 0:00:29]}  Ng2 {[%clk 0:00:27]} 52. Rd8 {[%clk 0:00:28]}  Ke2 {[%clk 0:00:27]} 53. Kb3 {[%clk 0:00:27]}  Ne1 {[%clk 0:00:27]} 54. Kc4 {[%clk 0:00:27]}  Nf3 {[%clk 0:00:23]} 55. Rd6 {[%clk 0:00:25]}  Nd2+ {[%clk 0:00:23]} 56. Kb5 {[%clk 0:00:24]}  Nb1 {[%clk 0:00:23]} 57. Rxf6 {[%clk 0:00:18]}  Kxd3 {[%clk 0:00:22]} 58. Rd6+ {[%clk 0:00:16]}  Kxc3 {[%clk 0:00:22]} 59. f6 {[%clk 0:00:16]}  Na3+ {[%clk 0:00:22]} 60. Ka4 {[%clk 0:00:14]}  Nc4 {[%clk 0:00:20]} 61. f7 {[%clk 0:00:13]}  Nxd6 {[%clk 0:00:17]} 62. f8=Q {[%clk 0:00:14]}  Nxe4 {[%clk 0:00:17]} 63. Qc8+ {[%clk 0:00:12]}  Kd3 {[%clk 0:00:16]} 64. Qd7+ {[%clk 0:00:11]}  Bd4 {[%clk 0:00:16]} 65. Qh3+ {[%clk 0:00:11]}  Be3 {[%clk 0:00:16]} 66. Qf1+ {[%clk 0:00:11]}  Kd2 {[%clk 0:00:15]} 67. Kb3 {[%clk 0:00:09]}  Bd4 {[%clk 0:00:11]} 68. Kc4 {[%clk 0:00:08]}  Nf2 {[%clk 0:00:09]} 69. b5 {[%clk 0:00:09]}  Ke3 {[%clk 0:00:08]} 70. Qe1+ {[%clk 0:00:08]}  Kf3 {[%clk 0:00:08]} 71. Kd5 {[%clk 0:00:08]}  Bb6 {[%clk 0:00:07]} 72. Qc3+ {[%clk 0:00:07]}  Be3 {[%clk 0:00:07]} 73. Qxe5 {[%clk 0:00:07]}  Nd3 {[%clk 0:00:07]} 74. Qe4+ {[%clk 0:00:07]}  Ke2 {[%clk 0:00:06]} 75. Qg2+ {[%clk 0:00:07]}  Nf2 {[%clk 0:00:06]} 76. Kc6 {[%clk 0:00:06]}  Kd3 {[%clk 0:00:06]} 77. b6 {[%clk 0:00:06]}  Ne4 {[%clk 0:00:07]} 78. b7 {[%clk 0:00:06]}  Nc3 {[%clk 0:00:08]} 79. b8=Q {[%clk 0:00:05]}  Ne2 {[%clk 0:00:08]} 80. Qg6+ {[%clk 0:00:05]}  Kd2 {[%clk 0:00:09]} 81. Qb2+ {[%clk 0:00:05]}  Ke1 {[%clk 0:00:09]} 82. Qgb1+ {[%clk 0:00:06]}  Kf2 {[%clk 0:00:09]} 83. Qd3 {[%clk 0:00:06]}  Kf3 {[%clk 0:00:08]} 84. Qbxe2+ {[%clk 0:00:06]}  Kf4 {[%clk 0:00:08]} 85. Qexe3+ {[%clk 0:00:07]} 1-0

[Event "January 9 Early 2024"]
[Site "https://www.chess.com"]
[Date "2024.01.11"]
[Round "3"]
[White "Bolat, Inayat"]
[Black "Mirzoev, Azer"]
[Result "0-1"]
[Board "316"]
[TimeControl "180+1"]
[WhiteFideId "13733125"]
[BlackFideId "13400304"]
[WhiteElo "2432"]
[BlackElo "2633"]
[WhiteTeam "KAZ"]
[BlackTeam "AZE"]
[WhiteClock "0:00:09"]
[BlackClock "0:00:13"]

1. e4 {[%clk 0:02:56]}  c6 {[%clk 0:02:59]} 2. d4 {[%clk 0:02:56]}  d5 {[%clk 0:02:59]} 3. f3 {[%clk 0:02:57]}  e6 {[%clk 0:02:57]} 4. Nc3 {[%clk 0:02:56]}  Qb6 {[%clk 0:02:56]} 5. e5 {[%clk 0:02:50]}  c5 {[%clk 0:02:54]} 6. dxc5 {[%clk 0:02:48]}  Bxc5 {[%clk 0:02:52]} 7. Na4 {[%clk 0:02:43]}  Qa5+ {[%clk 0:02:51]} 8. c3 {[%clk 0:02:36]}  Bxg1 {[%clk 0:02:41]} 9. Rxg1 {[%clk 0:02:37]}  Bd7 {[%clk 0:02:38]} 10. b3 {[%clk 0:02:17]}  Bxa4 {[%clk 0:02:38]} 11. bxa4 {[%clk 0:02:16]}  Qxc3+ {[%clk 0:02:38]} 12. Bd2 {[%clk 0:02:15]}  Qxe5+ {[%clk 0:02:37]} 13. Be2 {[%clk 0:02:10]}  Qxh2 {[%clk 0:02:33]} 14. Kf1 {[%clk 0:02:09]}  Nf6 {[%clk 0:02:31]} 15. Bc3 {[%clk 0:02:03]}  Nbd7 {[%clk 0:02:27]} 16. Bxf6 {[%clk 0:01:41]}  Nxf6 {[%clk 0:02:20]} 17. Bb5+ {[%clk 0:01:39]}  Kf8 {[%clk 0:02:18]} 18. Rc1 {[%clk 0:01:34]}  h5 {[%clk 0:02:08]} 19. Qd4 {[%clk 0:01:10]}  Kg8 {[%clk 0:01:40]} 20. Bd3 {[%clk 0:00:44]}  b6 {[%clk 0:01:06]} 21. Qc3 {[%clk 0:00:42]}  Rf8 {[%clk 0:00:34]} 22. a5 {[%clk 0:00:20]}  Qf4 {[%clk 0:00:32]} 23. axb6 {[%clk 0:00:17]}  axb6 {[%clk 0:00:32]} 24. Rb1 {[%clk 0:00:12]}  h4 {[%clk 0:00:23]} 25. Bc2 {[%clk 0:00:08]}  h3 {[%clk 0:00:16]} 26. g3 {[%clk 0:00:05]}  Qd6 {[%clk 0:00:10]} 27. Kf2 {[%clk 0:00:03]}  h2 {[%clk 0:00:10]} 28. Rh1 {[%clk 0:00:03]}  Rh3 {[%clk 0:00:09]} 29. f4 {[%clk 0:00:02]}  Ng4+ {[%clk 0:00:08]} 30. Kg2 {[%clk 0:00:03]}  Rh6 {[%clk 0:00:08]} 31. Qd3 {[%clk 0:00:02]}  Nf6 {[%clk 0:00:07]} 32. Bd1 {[%clk 0:00:02]}  Ne4 {[%clk 0:00:07]} 33. Rxh2 {[%clk 0:00:02]}  Rxh2+ {[%clk 0:00:06]} 34. Kxh2 {[%clk 0:00:03]}  Nf2 {[%clk 0:00:06]} 35. Qf3 {[%clk 0:00:02]}  Nxd1 {[%clk 0:00:06]} 36. Rxd1 {[%clk 0:00:03]}  Ra8 {[%clk 0:00:06]} 37. Rd2 {[%clk 0:00:03]}  g6 {[%clk 0:00:06]} 38. Kh3 {[%clk 0:00:02]}  Qc5 {[%clk 0:00:06]} 39. Qd3 {[%clk 0:00:01]}  Qc4 {[%clk 0:00:05]} 40. Qe3 {[%clk 0:00:01]}  Qe4 {[%clk 0:00:05]} 41. Qf2 {[%clk 0:00:01]}  Qh1+ {[%clk 0:00:05]} 42. Qh2 {[%clk 0:00:02]}  Qxh2+ {[%clk 0:00:05]} 43. Kxh2 {[%clk 0:00:03]}  Ra3 {[%clk 0:00:05]} 44. Kg2 {[%clk 0:00:03]}  Kg7 {[%clk 0:00:05]} 45. Rb2 {[%clk 0:00:03]}  Kf6 {[%clk 0:00:06]} 46. Rxb6 {[%clk 0:00:03]}  Rxa2+ {[%clk 0:00:06]} 47. Kf3 {[%clk 0:00:04]}  Ra3+ {[%clk 0:00:07]} 48. Kf2 {[%clk 0:00:04]}  g5 {[%clk 0:00:07]} 49. Rb7 {[%clk 0:00:02]}  g4 {[%clk 0:00:07]} 50. Kg2 {[%clk 0:00:02]}  Kg6 {[%clk 0:00:07]} 51. Kf2 {[%clk 0:00:02]}  Ra2+ {[%clk 0:00:07]} 52. Ke3 {[%clk 0:00:02]}  Rg2 {[%clk 0:00:07]} 53. Kd4 {[%clk 0:00:01]}  Rxg3 {[%clk 0:00:08]} 54. Ke5 {[%clk 0:00:02]}  Re3+ {[%clk 0:00:08]} 55. Kd6 {[%clk 0:00:02]}  Re4 {[%clk 0:00:08]} 56. Rb8 {[%clk 0:00:02]}  Rxf4 {[%clk 0:00:08]} 57. Rg8+ {[%clk 0:00:02]}  Kf5 {[%clk 0:00:08]} 58. Rg7 {[%clk 0:00:02]}  Ke4 {[%clk 0:00:08]} 59. Kc5 {[%clk 0:00:02]}  Kf3 {[%clk 0:00:08]} 60. Kd6 {[%clk 0:00:02]}  g3 {[%clk 0:00:09]} 61. Ke5 {[%clk 0:00:03]}  Rf5+ {[%clk 0:00:08]} 62. Kd4 {[%clk 0:00:03]}  g2 {[%clk 0:00:08]} 63. Kd3 {[%clk 0:00:03]}  Rf4 {[%clk 0:00:08]} 64. Kd2 {[%clk 0:00:03]}  Rg4 {[%clk 0:00:09]} 65. Rxf7+ {[%clk 0:00:03]}  Kg3 {[%clk 0:00:09]} 66. Rb7 {[%clk 0:00:02]}  g1=Q {[%clk 0:00:09]} 67. Rb3+ {[%clk 0:00:03]}  Kg2 {[%clk 0:00:09]} 68. Kc3 {[%clk 0:00:03]}  Qe3+ {[%clk 0:00:09]} 69. Kb2 {[%clk 0:00:03]}  Qd2+ {[%clk 0:00:09]} 70. Ka3 {[%clk 0:00:04]}  Qa5+ {[%clk 0:00:09]} 71. Kb2 {[%clk 0:00:03]}  Rb4 {[%clk 0:00:08]} 72. Rxb4 {[%clk 0:00:01]}  Qxb4+ {[%clk 0:00:09]} 73. Ka1 {[%clk 0:00:02]}  e5 {[%clk 0:00:09]} 74. Ka2 {[%clk 0:00:03]}  e4 {[%clk 0:00:10]} 75. Ka1 {[%clk 0:00:03]}  e3 {[%clk 0:00:11]} 76. Ka2 {[%clk 0:00:04]}  Kf2 {[%clk 0:00:11]} 77. Ka1 {[%clk 0:00:05]}  e2 {[%clk 0:00:12]} 78. Ka2 {[%clk 0:00:06]}  Ke3 {[%clk 0:00:12]} 79. Ka1 {[%clk 0:00:07]}  e1=Q+ {[%clk 0:00:12]} 80. Ka2 {[%clk 0:00:08]}  Qed2+ {[%clk 0:00:12]} 81. Ka1 {[%clk 0:00:09]}  Qdb2# {[%clk 0:00:13]} 0-1

[Event "January 9 Early 2024"]
[Site "https://www.chess.com"]
[Date "2024.01.11"]
[Round "3"]
[White "Sierra Vallina, Lionel"]
[Black "Mrithyunjay Mahadevan"]
[Result "1/2-1/2"]
[Board "319"]
[TimeControl "180+1"]
[WhiteFideId "54559774"]
[BlackFideId "45003521"]
[WhiteElo "2612"]
[BlackElo "2436"]
[WhiteTeam "ESP"]
[BlackTeam "IND"]
[WhiteClock "0:00:08"]
[BlackClock "0:00:03"]

1. Nf3 {[%clk 0:03:00]}  g6 {[%clk 0:02:58]} 2. d4 {[%clk 0:02:56]}  Nf6 {[%clk 0:02:56]} 3. c4 {[%clk 0:02:55]}  Bg7 {[%clk 0:02:56]} 4. Nc3 {[%clk 0:02:51]}  d5 {[%clk 0:02:55]} 5. cxd5 {[%clk 0:02:45]}  Nxd5 {[%clk 0:02:53]} 6. Bd2 {[%clk 0:02:45]}  Nb6 {[%clk 0:02:39]} 7. e4 {[%clk 0:02:42]}  O-O {[%clk 0:02:37]} 8. h3 {[%clk 0:02:27]}  Be6 {[%clk 0:02:31]} 9. d5 {[%clk 0:02:25]}  Bd7 {[%clk 0:02:30]} 10. a4 {[%clk 0:02:17]}  c6 {[%clk 0:02:16]} 11. a5 {[%clk 0:02:15]}  Nc8 {[%clk 0:02:16]} 12. Bd3 {[%clk 0:02:09]}  cxd5 {[%clk 0:02:15]} 13. exd5 {[%clk 0:02:10]}  e6 {[%clk 0:02:15]} 14. O-O {[%clk 0:02:09]}  exd5 {[%clk 0:02:15]} 15. Bg5 {[%clk 0:02:06]}  f6 {[%clk 0:02:15]} 16. Bf4 {[%clk 0:02:02]}  Be6 {[%clk 0:02:09]} 17. Nb5 {[%clk 0:02:00]}  Na6 {[%clk 0:02:08]} 18. Nbd4 {[%clk 0:01:50]}  Bf7 {[%clk 0:02:03]} 19. Re1 {[%clk 0:01:35]}  Nc5 {[%clk 0:01:58]} 20. b4 {[%clk 0:01:25]}  Nxd3 {[%clk 0:01:57]} 21. Qxd3 {[%clk 0:01:26]}  Nd6 {[%clk 0:01:57]} 22. Ne6 {[%clk 0:01:22]}  Bxe6 {[%clk 0:01:56]} 23. Rxe6 {[%clk 0:01:23]}  Nc4 {[%clk 0:01:49]} 24. Rd1 {[%clk 0:01:18]}  Kf7 {[%clk 0:01:28]} 25. Re2 {[%clk 0:01:17]}  b6 {[%clk 0:01:28]} 26. Qxd5+ {[%clk 0:01:16]}  Qxd5 {[%clk 0:01:27]} 27. Rxd5 {[%clk 0:01:17]}  Rfd8 {[%clk 0:01:20]} 28. Rxd8 {[%clk 0:01:16]}  Rxd8 {[%clk 0:01:21]} 29. axb6 {[%clk 0:01:02]}  axb6 {[%clk 0:01:20]} 30. Rc2 {[%clk 0:01:00]}  b5 {[%clk 0:01:17]} 31. Ra2 {[%clk 0:00:57]}  Bf8 {[%clk 0:01:14]} 32. Ra7+ {[%clk 0:00:55]}  Ke6 {[%clk 0:01:06]} 33. Rb7 {[%clk 0:00:44]}  g5 {[%clk 0:00:53]} 34. Bg3 {[%clk 0:00:36]}  Na3 {[%clk 0:00:48]} 35. Rb6+ {[%clk 0:00:27]}  Kf5 {[%clk 0:00:45]} 36. Bc7 {[%clk 0:00:20]}  Rd7 {[%clk 0:00:41]} 37. Rc6 {[%clk 0:00:06]}  Bxb4 {[%clk 0:00:12]} 38. g4+ {[%clk 0:00:07]}  Ke4 {[%clk 0:00:11]} 39. Kg2 {[%clk 0:00:07]}  Nc4 {[%clk 0:00:11]} 40. Bb8 {[%clk 0:00:06]}  Bd6 {[%clk 0:00:09]} 41. Bxd6 {[%clk 0:00:05]}  Rxd6 {[%clk 0:00:10]} 42. Rc5 {[%clk 0:00:05]}  Rd5 {[%clk 0:00:10]} 43. Rc6 {[%clk 0:00:05]}  Nd6 {[%clk 0:00:10]} 44. Rb6 {[%clk 0:00:04]}  Kd3 {[%clk 0:00:08]} 45. h4 {[%clk 0:00:04]}  Kc4 {[%clk 0:00:07]} 46. hxg5 {[%clk 0:00:03]}  fxg5 {[%clk 0:00:08]} 47. Kg3 {[%clk 0:00:03]}  Kc5 {[%clk 0:00:08]} 48. Rb8 {[%clk 0:00:03]}  Rd3 {[%clk 0:00:08]} 49. Kg2 {[%clk 0:00:02]}  Ne4 {[%clk 0:00:08]} 50. Ne5 {[%clk 0:00:02]}  Rd2 {[%clk 0:00:08]} 51. Rf8 {[%clk 0:00:02]}  Kd5 {[%clk 0:00:07]} 52. Nf3 {[%clk 0:00:02]}  Rxf2+ {[%clk 0:00:07]} 53. Kg1 {[%clk 0:00:03]}  b4 {[%clk 0:00:07]} 54. Rd8+ {[%clk 0:00:04]}  Kc4 {[%clk 0:00:07]} 55. Nxg5 {[%clk 0:00:04]}  Rf4 {[%clk 0:00:06]} 56. Ne6 {[%clk 0:00:04]}  Rxg4+ {[%clk 0:00:06]} 57. Kh2 {[%clk 0:00:05]}  b3 {[%clk 0:00:07]} 58. Rc8+ {[%clk 0:00:05]}  Kd3 {[%clk 0:00:07]} 59. Rb8 {[%clk 0:00:05]}  Kc2 {[%clk 0:00:07]} 60. Nd4+ {[%clk 0:00:06]}  Kc3 {[%clk 0:00:06]} 61. Nxb3 {[%clk 0:00:07]}  Rh4+ {[%clk 0:00:06]} 62. Kg2 {[%clk 0:00:07]}  Ng5 {[%clk 0:00:05]} 63. Nc5 {[%clk 0:00:07]}  Rb4 {[%clk 0:00:05]} 64. Rc8 {[%clk 0:00:06]}  Rc4 {[%clk 0:00:05]} 65. Rc7 {[%clk 0:00:05]}  Kd4 {[%clk 0:00:04]} 66. Na6 {[%clk 0:00:05]}  Rxc7 {[%clk 0:00:05]} 67. Nxc7 {[%clk 0:00:06]}  Ke5 {[%clk 0:00:05]} 68. Nb5 {[%clk 0:00:06]}  Ne6 {[%clk 0:00:05]} 69. Nc3 {[%clk 0:00:06]}  Kd4 {[%clk 0:00:05]} 70. Ne2+ {[%clk 0:00:07]}  Ke3 {[%clk 0:00:05]} 71. Ng3 {[%clk 0:00:08]}  Kf4 {[%clk 0:00:05]} 72. Kh3 {[%clk 0:00:08]}  Kg5 {[%clk 0:00:05]} 73. Ne4+ {[%clk 0:00:07]}  Kg6 {[%clk 0:00:05]} 74. Nf2 {[%clk 0:00:08]}  Ng5+ {[%clk 0:00:05]} 75. Kg4 {[%clk 0:00:07]}  h5+ {[%clk 0:00:05]} 76. Kf4 {[%clk 0:00:07]}  Ne6+ {[%clk 0:00:05]} 77. Kg3 {[%clk 0:00:07]}  Kg5 {[%clk 0:00:05]} 78. Nh3+ {[%clk 0:00:08]}  Kf5 {[%clk 0:00:05]} 79. Kh4 {[%clk 0:00:09]}  Ng7 {[%clk 0:00:04]} 80. Nf2 {[%clk 0:00:08]}  Kg6 {[%clk 0:00:05]} 81. Ne4 {[%clk 0:00:08]}  Nf5+ {[%clk 0:00:05]} 82. Kh3 {[%clk 0:00:08]}  Kh6 {[%clk 0:00:06]} 83. Ng3 {[%clk 0:00:08]}  h4 {[%clk 0:00:06]} 84. Nxf5+ {[%clk 0:00:07]}  Kg5 {[%clk 0:00:02]} 85. Ne3 {[%clk 0:00:07]}  Kf4 {[%clk 0:00:02]} 86. Ng2+ {[%clk 0:00:08]}  Kf3 {[%clk 0:00:03]} 87. Nxh4+ {[%clk 0:00:08]} 1/2-1/2

[Event "January 9 Early 2024"]
[Site "https://www.chess.com"]
[Date "2024.01.11"]
[Round "3"]
[White "Przybylski, Wojciech"]
[Black "Finek, Vaclav"]
[Result "1/2-1/2"]
[Board "321"]
[TimeControl "180+1"]
[WhiteFideId "1117599"]
[BlackFideId "23718293"]
[WhiteElo "2557"]
[BlackElo "2824"]
[WhiteTeam "POL"]
[BlackTeam "CZE"]
[WhiteClock "0:00:02"]
[BlackClock "0:00:12"]

1. d4 {[%clk 0:03:00]}  d5 {[%clk 0:02:59]} 2. g3 {[%clk 0:03:00]}  Nf6 {[%clk 0:02:58]} 3. Bg2 {[%clk 0:03:00]}  g6 {[%clk 0:02:58]} 4. Nf3 {[%clk 0:03:00]}  Bg7 {[%clk 0:02:58]} 5. O-O {[%clk 0:03:00]}  O-O {[%clk 0:02:58]} 6. a4 {[%clk 0:03:00]}  c6 {[%clk 0:02:52]} 7. a5 {[%clk 0:02:59]}  Ne4 {[%clk 0:02:47]} 8. c3 {[%clk 0:02:58]}  Nd6 {[%clk 0:02:47]} 9. Nbd2 {[%clk 0:02:57]}  Nd7 {[%clk 0:02:46]} 10. Re1 {[%clk 0:02:56]}  Nf6 {[%clk 0:02:45]} 11. Ne5 {[%clk 0:02:56]}  Qc7 {[%clk 0:02:42]} 12. h3 {[%clk 0:02:54]}  h5 {[%clk 0:02:42]} 13. Kh2 {[%clk 0:02:54]}  Bf5 {[%clk 0:02:42]} 14. f3 {[%clk 0:02:51]}  Rae8 {[%clk 0:02:31]} 15. e4 {[%clk 0:02:49]}  dxe4 {[%clk 0:02:29]} 16. fxe4 {[%clk 0:02:48]}  Bc8 {[%clk 0:02:29]} 17. Nd3 {[%clk 0:02:40]}  Nh7 {[%clk 0:02:23]} 18. e5 {[%clk 0:02:39]}  Nf5 {[%clk 0:02:20]} 19. Ne4 {[%clk 0:02:36]}  b6 {[%clk 0:02:15]} 20. Bf4 {[%clk 0:02:33]}  Be6 {[%clk 0:02:12]} 21. axb6 {[%clk 0:02:31]}  axb6 {[%clk 0:02:11]} 22. Nb4 {[%clk 0:02:19]}  Kh8 {[%clk 0:01:56]} 23. Qd2 {[%clk 0:02:01]}  Rd8 {[%clk 0:01:51]} 24. Qf2 {[%clk 0:01:59]}  Bh6 {[%clk 0:01:27]} 25. h4 {[%clk 0:01:40]}  Bxf4 {[%clk 0:01:15]} 26. Qxf4 {[%clk 0:01:32]}  Kg7 {[%clk 0:01:13]} 27. Rf1 {[%clk 0:01:07]}  Nh6 {[%clk 0:01:10]} 28. Kg1 {[%clk 0:01:00]}  Ng4 {[%clk 0:01:07]} 29. Nf2 {[%clk 0:00:47]}  Nxf2 {[%clk 0:00:49]} 30. Rxf2 {[%clk 0:00:48]}  c5 {[%clk 0:00:49]} 31. Nc6 {[%clk 0:00:46]}  Rd5 {[%clk 0:00:35]} 32. Ra7 {[%clk 0:00:40]}  Qxc6 {[%clk 0:00:32]} 33. c4 {[%clk 0:00:40]}  Rxd4 {[%clk 0:00:24]} 34. Bxc6 {[%clk 0:00:36]}  Rxf4 {[%clk 0:00:23]} 35. Rxf4 {[%clk 0:00:35]}  g5 {[%clk 0:00:21]} 36. hxg5 {[%clk 0:00:27]}  Nxg5 {[%clk 0:00:22]} 37. Kh2 {[%clk 0:00:19]}  Rd8 {[%clk 0:00:20]} 38. Rf2 {[%clk 0:00:13]}  Bxc4 {[%clk 0:00:18]} 39. Rxe7 {[%clk 0:00:13]}  b5 {[%clk 0:00:19]} 40. e6 {[%clk 0:00:11]}  Bxe6 {[%clk 0:00:18]} 41. Bxb5 {[%clk 0:00:11]}  Rb8 {[%clk 0:00:17]} 42. Bd3 {[%clk 0:00:10]}  Rb4 {[%clk 0:00:17]} 43. Bf5 {[%clk 0:00:08]}  Bd5 {[%clk 0:00:17]} 44. Bb1 {[%clk 0:00:03]}  Nf3+ {[%clk 0:00:17]} 45. Kh3 {[%clk 0:00:03]}  Ng5+ {[%clk 0:00:14]} 46. Kh2 {[%clk 0:00:03]}  Nf3+ {[%clk 0:00:06]} 47. Kh3 {[%clk 0:00:04]}  h4 {[%clk 0:00:07]} 48. g4 {[%clk 0:00:04]}  Rb3 {[%clk 0:00:03]} 49. Bf5 {[%clk 0:00:04]}  Ng5+ {[%clk 0:00:02]} 50. Kxh4 {[%clk 0:00:04]}  Nf3+ {[%clk 0:00:03]} 51. Kg3 {[%clk 0:00:04]}  Ng5+ {[%clk 0:00:03]} 52. Kf4 {[%clk 0:00:04]}  Nh3+ {[%clk 0:00:04]} 53. Ke5 {[%clk 0:00:05]}  Nxf2 {[%clk 0:00:04]} 54. Kxd5 {[%clk 0:00:05]}  Rxb2 {[%clk 0:00:05]} 55. Kxc5 {[%clk 0:00:06]}  Nh3 {[%clk 0:00:05]} 56. Kd4 {[%clk 0:00:06]}  Ng5 {[%clk 0:00:06]} 57. Kc3 {[%clk 0:00:06]}  Rf2 {[%clk 0:00:06]} 58. Rd7 {[%clk 0:00:06]}  Kf6 {[%clk 0:00:07]} 59. Kd3 {[%clk 0:00:06]}  Rf3+ {[%clk 0:00:07]} 60. Ke2 {[%clk 0:00:06]}  Ra3 {[%clk 0:00:08]} 61. Rd6+ {[%clk 0:00:07]}  Ke5 {[%clk 0:00:08]} 62. Rb6 {[%clk 0:00:07]}  Kf4 {[%clk 0:00:08]} 63. Rb4+ {[%clk 0:00:07]}  Kg3 {[%clk 0:00:09]} 64. Rb7 {[%clk 0:00:07]}  Rc3 {[%clk 0:00:06]} 65. Kd2 {[%clk 0:00:07]}  Rc5 {[%clk 0:00:06]} 66. Rb3+ {[%clk 0:00:07]}  Kh4 {[%clk 0:00:06]} 67. Rb7 {[%clk 0:00:07]}  Re5 {[%clk 0:00:06]} 68. Kd3 {[%clk 0:00:07]}  Kg3 {[%clk 0:00:06]} 69. Rb8 {[%clk 0:00:07]}  Rd5+ {[%clk 0:00:06]} 70. Kc4 {[%clk 0:00:07]}  Re5 {[%clk 0:00:07]} 71. Kd4 {[%clk 0:00:07]}  Re1 {[%clk 0:00:07]} 72. Rb7 {[%clk 0:00:06]}  Kf4 {[%clk 0:00:08]} 73. Kd3 {[%clk 0:00:06]}  Re3+ {[%clk 0:00:08]} 74. Kd4 {[%clk 0:00:06]}  Nf3+ {[%clk 0:00:08]} 75. Kd5 {[%clk 0:00:06]}  Re5+ {[%clk 0:00:09]} 76. Kd6 {[%clk 0:00:07]}  Rxf5 {[%clk 0:00:05]} 77. gxf5 {[%clk 0:00:07]}  Kxf5 {[%clk 0:00:06]} 78. Rxf7+ {[%clk 0:00:06]}  Ke4 {[%clk 0:00:07]} 79. Re7+ {[%clk 0:00:06]}  Kd4 {[%clk 0:00:07]} 80. Rf7 {[%clk 0:00:07]}  Ke4 {[%clk 0:00:08]} 81. Rh7 {[%clk 0:00:06]}  Kf4 {[%clk 0:00:05]} 82. Rg7 {[%clk 0:00:05]}  Ke4 {[%clk 0:00:06]} 83. Ke6 {[%clk 0:00:06]}  Nd4+ {[%clk 0:00:06]} 84. Kf6 {[%clk 0:00:06]}  Kf4 {[%clk 0:00:05]} 85. Rh7 {[%clk 0:00:06]}  Nf3 {[%clk 0:00:05]} 86. Ra7 {[%clk 0:00:05]}  Ke4 {[%clk 0:00:05]} 87. Ra4+ {[%clk 0:00:05]}  Nd4 {[%clk 0:00:06]} 88. Rb4 {[%clk 0:00:05]}  Kd5 {[%clk 0:00:07]} 89. Rb8 {[%clk 0:00:05]}  Ke4 {[%clk 0:00:07]} 90. Rd8 {[%clk 0:00:05]}  Nf3 {[%clk 0:00:08]} 91. Rd1 {[%clk 0:00:04]}  Nd4 {[%clk 0:00:08]} 92. Re1+ {[%clk 0:00:04]}  Kd5 {[%clk 0:00:08]} 93. Ke7 {[%clk 0:00:04]}  Nf5+ {[%clk 0:00:08]} 94. Kd7 {[%clk 0:00:04]}  Nd4 {[%clk 0:00:09]} 95. Rd1 {[%clk 0:00:04]}  Ke5 {[%clk 0:00:09]} 96. Rd2 {[%clk 0:00:04]}  Kd5 {[%clk 0:00:09]} 97. Rh2 {[%clk 0:00:03]}  Ke5 {[%clk 0:00:09]} 98. Rh5+ {[%clk 0:00:03]}  Ke4 {[%clk 0:00:09]} 99. Kd6 {[%clk 0:00:03]}  Nf5+ {[%clk 0:00:10]} 100. Kc5 {[%clk 0:00:03]}  Ke5 {[%clk 0:00:11]} 101. Rg5 {[%clk 0:00:03]}  Kf4 {[%clk 0:00:10]} 102. Rg8 {[%clk 0:00:03]}  Ke5 {[%clk 0:00:11]} 103. Ra8 {[%clk 0:00:03]}  Ke4 {[%clk 0:00:09]} 104. Re8+ {[%clk 0:00:03]}  Kf4 {[%clk 0:00:10]} 105. Kd5 {[%clk 0:00:03]}  Ne3+ {[%clk 0:00:11]} 106. Kd4 {[%clk 0:00:03]}  Nf5+ {[%clk 0:00:11]} 107. Kd3 {[%clk 0:00:03]}  Nd6 {[%clk 0:00:12]} 108. Re6 {[%clk 0:00:03]}  Nf5 {[%clk 0:00:12]} 109. Re8 {[%clk 0:00:01]}  Nd6 {[%clk 0:00:12]} 110. Re1 {[%clk 0:00:01]}  Nf5 {[%clk 0:00:12]} 111. Re6 {[%clk 0:00:02]}  Kf3 {[%clk 0:00:12]} 1/2-1/2